Cogmind - Beta 16 @@@ ROGUE MODE // 2026.01.06 @ 13:25:37 Player: PE-P51 Result: Destroyed by D-53 Grenadier with Mini Grenade Launcher Performance ------------- Evolutions (0) 0 Regions Visited (4) 800 Robots Destroyed (38) 190 Value Destroyed (770) 770 Prototype IDs (2) 40 Alien Tech Used (0) 0 Bonus (0) 0 TOTAL SCORE: 1800 Bonus ------- None Cogmind --------- Core Integrity 0/250 Matter 300/300 Energy 98/100 System Corruption 0% Temperature Cool (0) Movement Core (50) Location -9/Mines Parts ------- > --- POWER (1) -------- (None) > --- PROPULSION (2) --- (None) > --- UTILITY (2) ------ (None) > --- WEAPON (2) ------- (None) > --- INVENTORY (5) ---- Scrap Suit Terrain Scan Processor Small Laser Grenade Launcher Peak State ------------ > --- POWER ------------ Improved Ion Engine > --- PROPULSION ------- Light Treads Light Treads > --- UTILITY ---------- Improved Heat Sink Huge Storage Unit > --- WEAPON ----------- Medium Laser Light Assault Rifle > --- INVENTORY -------- Ion Engine Ion Engine Ion Engine Aluminum Leg Aluminum Leg Aluminum Leg Aluminum Leg Flight Unit Flight Unit Flight Unit Improved Heat Sink Small Storage Unit Huge Storage Unit Terrain Scan Processor Terrain Scan Processor Trap Extractor Trap Extractor Medium Laser Small Laser Small Laser Small Laser Small Laser Small Laser Grenade Launcher [Rating: 13] Favorites ----------- Power Improved Ion Engine Engine Improved Ion Engine Propulsion Light Treads Treads Light Treads Leg Aluminum Leg Wheel Wheel Utility Huge Storage Unit Device Improved Heat Sink Storage Huge Storage Unit Weapon Medium Laser Energy Gun Medium Laser Ballistic Gun Light Assault Rifle Launcher Grenade Launcher Build | -11 -10 -10 -10 -9 ------- Run | Yrd Mat Min Exi Min Slots Evolved . | . . . . . Power . | . . . . . Propulsion . | . . . . . Utility . | . . . . . Weapon . | . . . . . Parts Attached 20 | . 16 1 . 3 Power 2 | . 2 . . . Engine 2 | . 2 . . . Core . | . . . . . Reactor . | . . . . . Propulsion 6 | . 4 . . 2 Treads 2 | . 2 . . . Leg 2 | . . . . 2 Wheel 2 | . 2 . . . Hover . | . . . . . Flight . | . . . . . Utility 3 | . 2 1 . . Device 2 | . 1 1 . . Storage 1 | . 1 . . . Processor . | . . . . . Hackware . | . . . . . Protection . | . . . . . Artifact . | . . . . . Weapon 9 | . 8 . . 1 Energy Gun 7 | . 6 . . 1 Energy Cannon . | . . . . . Ballistic Gun 1 | . 1 . . . Ballistic Cannon . | . . . . . Launcher 1 | . 1 . . . Special Weapon . | . . . . . Impact Weapon . | . . . . . Slashing Weapon . | . . . . . Piercing Weapon . | . . . . . Special Melee Weapon . | . . . . . Unidentified Prototypes . | . . . . . Parts Lost 7 | . 3 1 . 3 Power 2 | . 1 . . 1 Propulsion 3 | . 2 . . 1 Utility 1 | . . 1 . . Weapon 1 | . . . . 1 Highest Loss Streak 2 | . 2 1 . 1 To Critical Strikes . | . . . . . Average Backups 23 | . 21 24 25 24 Power 3 | . 3 3 3 3 Propulsion 6 | . 6 7 7 6 Utility 6 | . 6 6 6 6 Weapon 7 | . 5 8 9 8 Tool/Special . | . . . . . Unused Backups 19 | . . . . 19 Power 3 | . . . . 3 Propulsion 5 | . . . . 5 Utility 7 | . . . . 7 Weapon 4 | . . . . 4 Tool/Special . | . . . . . Average Slot Usage (%) 98 | . 95 99 100 98 Engine 13 | . 13 14 14 13 Treads 23 | . 20 28 28 8 Leg 2 | . . . . 18 Wheel 2 | . 7 . . . Device 12 | . 10 13 14 13 Storage 13 | . 14 14 14 13 Energy Gun 24 | . 18 28 28 27 Ballistic Gun 2 | . 7 . . . Peak Build Rating 13 | . 13 13 12 13 Average Rating 11 | . 11 12 12 12 On Entrance 9 | 6 6 13 12 12 Avg Prop Armor Cover (%) . | . . . . . Naked Turns 3 | . . . . 3 Heaviest Build 93 | 13 93 92 92 92 Greatest Support 40 | 20 40 40 40 40 Greatest Overweight (x) 4 | . 4 2 2 4 Average Overweight (x) 2 | . 2 2 2 3 Largest Inventory Capacity 25 | . 25 25 25 25 Average Capacity 24 | . 24 25 25 24 Most Carried 25 | . 25 25 25 25 Average Carried 23 | . 21 24 25 24 Final Capacity 25 | 8 25 25 25 5 Final Carried 25 | 6 25 25 25 5 Class Distribution -------------------- 100% | Mutant Dominant Class ---------------- Mutant | -10/Materials Mutant | -10/Mines Mutant | -10/Exiles Mutant | -9/Mines Resources | -11 -10 -10 -10 -9 ----------- Run | Yrd Mat Min Exi Min Matter Collected 459 | 200 207 27 . 25 Remotely . | . . . . . Salvage Created 952 | . 625 218 . 109 Parts 61 | . 39 15 . 7 Haulers Intercepted . | . . . . . Recyclers Shooed 1 | . 1 . . . Parts Field Recycled . | . . . . . Retrieved Matter . | . . . . . Parts Self-Destructed . | . . . . . Prevented . | . . . . . Parts Restored . | . . . . . Kills | -11 -10 -10 -10 -9 ------- Run | Yrd Mat Min Exi Min Combat Hostiles Destroyed 30 | . 17 6 . 7 Guns 24 | . 12 5 . 7 AOE 5 | . 5 . . . Classes Destroyed 7 | . 7 . . . Worker 2 | . 2 . . . Builder 2 | . 1 1 . . Tunneler 2 | . 1 1 . . Recycler 1 | . 1 . . . Watcher 1 | . 1 . . . Swarmer 15 | . 6 2 . 7 Grunt 15 | . 11 4 . . Best Kill Streak 5 | . 5 3 . 4 Combat Bots Only 5 | . 5 3 . 4 Max Kills in Single Turn 2 | . 2 1 . 1 Gunslinging . | . . . . . Exploded 2 | . 2 . . . Melee . | . . . . . Uniques/NPCs Destroyed . | . . . . . Combat | -11 -10 -10 -10 -9 -------- Run | Yrd Mat Min Exi Min Hostile Shots Fired 124 | . 67 21 . 36 Missed 21 | . 14 3 . 4 Hits 103 | . 53 18 . 32 Projectile 103 | . 53 18 . 32 AOE 6 | . . . . 6 Critical Strikes 1 | . 1 . . . Damage Taken 1229 | . 574 233 . 422 Core 251 | . 97 16 . 138 Absorbed by Shields . | . . . . . Regen/Repaired (Parts) 62 | . 62 . . . Core Remaining (%) 100 | 100 . . . . Volleys Fired 85 | . 58 16 . 11 Largest 2 | . 2 2 . 2 Hottest 100 | . 100 100 . 100 Shots Fired 154 | . 104 32 . 18 Gun 148 | . 98 32 . 18 Cannon . | . . . . . Launcher 6 | . 6 . . . Special . | . . . . . Kinetic 20 | . 20 . . . Thermal 128 | . 78 32 . 18 Explosive 6 | . 6 . . . Electromagnetic . | . . . . . Robot Hit Streak 17 | . 17 4 . 3 Robot Miss Streak 3 | . 3 2 . 2 Penetration Max . | . . . . . Secondary Targets 3 | . 2 1 . . Max Gunslinging Chain 1 | . 1 1 . . Shots Hit Robots 97 | . 68 20 . 9 Core Hits 52 | . 34 11 . 7 Critical Kills . | . . . . . Critical Parts Destroyed 1 | . 1 . . . Critical Strikes 8 | . 6 2 . . Burn 7 | . 5 2 . . Destroy 1 | . 1 . . . Melee Attacks . | . . . . . Impact . | . . . . . Slashing . | . . . . . Piercing . | . . . . . Sneak Attacks . | . . . . . Combat Hostiles . | . . . . . Follow-up Attacks . | . . . . . Damage Inflicted 1594 | . 1209 277 . 108 Guns 1073 | . 716 249 . 108 Cannons . | . . . . . Explosions 480 | . 480 . . . Melee . | . . . . . Ramming 41 | . 13 28 . . Kinetic 118 | . 118 . . . Thermal 1006 | . 649 249 . 108 Explosive 429 | . 429 . . . Electromagnetic . | . . . . . Impact . | . . . . . Slashing . | . . . . . Piercing . | . . . . . Highest Corruption . | . . . . . Average Corruption . | . . . . . Corruption Purged . | . . . . . Corruption Blocked . | . . . . . Overload Shots . | . . . . . Overflow Damage 46 | . 46 . . . Projectiles . | . . . . . Explosions 46 | . 46 . . . Melee . | . . . . . Knockbacks . | . . . . . Impact . | . . . . . Kinetic . | . . . . . Secondary . | . . . . . Self-Inflicted Damage . | . . . . . Shots . | . . . . . Rammed 4 | . 1 3 . . Targets Rammed 5 | . 2 3 . . Kicked . | . . . . . Crushed 1 | . 1 . . . Highest Temperature 360 | . 360 98 . . Average Temperature 92 | . 110 29 . . Received Heat Transfer 390 | . 279 111 . . Effects 1 | . 1 . . . Damage (minor) 1 | . 1 . . . Siege Activations . | . . . . . Martial Activations . | . . . . . Shielding Activations . | . . . . . Robots Disrupted . | . . . . . Combat Hostiles . | . . . . . Robots Corrupted . | . . . . . Combat Hostiles . | . . . . . Parts Fried . | . . . . . Impact Corruptions . | . . . . . Robots Melted 1 | . . 1 . . Combat Hostiles 1 | . . 1 . . Parts Melted 8 | . 4 4 . . Heat Transferred 3262 | . 2077 888 . 297 Parts Sabotaged . | . . . . . Parts Stolen . | . . . . . Parts Stripped . | . . . . . Power Chain Reactions . | . . . . . Alert | -11 -10 -10 -10 -9 ------- Run | Yrd Mat Min Exi Min Maximum Alert Level 1 | . 1 . . . Low Security (%) 95 | . 90 100 . 100 Level 1 4 | . 9 . . . Level 2 . | . . . . . Level 3 . | . . . . . Level 4 . | . . . . . Level 5 . | . . . . . High Security . | . . . . . Max Security . | . . . . . Peak Influence 234 | . 234 92 . 80 Initial . | . . . . . Average 38 | . 73 7 . 18 Influence Increases 862 | . 512 190 . 160 Destroy 0b10 Robot/C 600 | . 340 120 . 140 Destroy 0b10 Robot/NC 40 | . 30 10 . . Destroy Leader 112 | . 62 30 . 20 Successful Hack 3 | . 3 . . . Disable Machine 15 | . 15 . . . Destroy Structure 47 | . 47 . . . Lose Combat Pursuer 45 | . 15 30 . . Influence Decreases 862 | . 512 190 . 160 Time Decay 802 | . 482 180 . 140 Lost Part 60 | . 30 10 . 20 Squads Dispatched 3 | . 3 . . . Investigation 2 | . 2 . . . Extermination . | . . . . . Reinforcement 1 | . 1 . . . Assault . | . . . . . Garrison . | . . . . . Intercept . | . . . . . Searches Triggered . | . . . . . Construction Impeded . | . . . . . Haulers Reinforced . | . . . . . Active Scanning Responses . | . . . . . Cargo Convoy Interrupts . | . . . . . Stealth | -11 -10 -10 -10 -9 --------- Run | Yrd Mat Min Exi Min Distress Signals 1 | . 1 . . . Communications Jammed . | . . . . . Distress Signals . | . . . . . Times Spotted 54 | . 37 8 . 9 Peak Tracking Total 5 | . 5 4 . 4 Tactical Retreats 2 | . 1 1 . . Traps | -11 -10 -10 -10 -9 ------- Run | Yrd Mat Min Exi Min Traps Triggered 1 | . 1 . . . Indirectly . | . . . . . Trap Hack Attempts . | . . . . . Triggered . | . . . . . Disarmed . | . . . . . Reprogrammed . | . . . . . Reused . | . . . . . Traps Extracted . | . . . . . Installed . | . . . . . Triggered . | . . . . . Machines | -11 -10 -10 -10 -9 ---------- Run | Yrd Mat Min Exi Min Machines Disabled 1 | . 1 . . . Max in Single Turn 1 | . 1 . . . Machines Repaired . | . . . . . Machines Dismantled . | . . . . . Machines Sabotaged . | . . . . . Overloaded Fab Kills . | . . . . . Hacking | -11 -10 -10 -10 -9 --------- Run | Yrd Mat Min Exi Min Machines Accessed 12 | . 8 . 4 . Terminals 6 | . 6 . . . Fabricators . | . . . . . Repair Stations 1 | . 1 . . . Recycling Units 1 | . 1 . . . Scanalyzers . | . . . . . Garrison Access . | . . . . . Total Hacks 26 | . 22 . 4 . Successful 15 | . 11 . 4 . Failed 11 | . 11 . . . Catastrophic 2 | . 2 . . . Database Lockouts . | . . . . . Manual 13 | . 13 . . . Terminals 17 | . 17 . . . Fabricators . | . . . . . Repair Stations 3 | . 3 . . . Recycling Units 2 | . 2 . . . Scanalyzers . | . . . . . Garrison Access . | . . . . . Terminal Hacks 7 | . 3 . 4 . Record 4 | . . . 4 . Prototype ID Bank 1 | . 1 . . . Alert Level 1 | . 1 . . . Hauler Manifests 1 | . 1 . . . Fabricator Hacks . | . . . . . Repair Station Hacks 2 | . 2 . . . Scan Component 1 | . 1 . . . Repair 1 | . 1 . . . Recycling Unit Hacks 1 | . 1 . . . Retrieve Components 1 | . 1 . . . Scanalyzer . | . . . . . Garrison Access Hacks . | . . . . . Unauthorized Hacks 5 | . 5 . . . Terminals 5 | . 5 . . . Botnet 3 | . 3 . . . Skim 2 | . 2 . . . Fabricators . | . . . . . Repair Stations . | . . . . . Recycling Units . | . . . . . Scanalyzers . | . . . . . Garrison Access . | . . . . . Data Cores Recovered . | . . . . . Used . | . . . . . Hacking Detections 8 | . 8 . . . Full Trace Events 1 | . 1 . . . Feedback Events . | . . . . . Feedback Blocked . | . . . . . Robot Schematics Acquired . | . . . . . Robots Built . | . . . . . Authchips . | . . . . . Time . | . . . . . Total Robot Build Rating . | . . . . . Part Schematics Acquired . | . . . . . Parts Built . | . . . . . Authchips . | . . . . . Time . | . . . . . Total Part Build Rating . | . . . . . Part Studies Acquired . | . . . . . Parts Repaired 1 | . 1 . . . Time 26 | . 26 . . . Parts Recycled . | . . . . . Recycled Matter . | . . . . . Retrieved Matter . | . . . . . Retrieved Components 10 | . 10 . . . Parts Scanalyzed . | . . . . . Part Schematics Acquired . | . . . . . Parts Damaged . | . . . . . Bothacking | -11 -10 -10 -10 -9 ------------ Run | Yrd Mat Min Exi Min Used RIF Installer . | . . . . . Robots Hacked . | . . . . . Non-combat . | . . . . . Combat . | . . . . . Robot Hacks Applied . | . . . . . Relay Couplers Released . | . . . . . Fabnet Peak Effective % . | . . . . . Robots Rewired . | . . . . . Allies Hacked . | . . . . . Hacks Repelled . | . . . . . Allies | -11 -10 -10 -10 -9 -------- Run | Yrd Mat Min Exi Min Total Allies . | . . . . . Largest Group . | . . . . . Highest-Rated Group . | . . . . . Highest-Rated Ally . | . . . . . Total Orders . | . . . . . Ally Attacks . | . . . . . Total Damage . | . . . . . Kills . | . . . . . Allies Corrupted . | . . . . . Allies Melted . | . . . . . Intel | -11 -10 -10 -10 -9 ------- Run | Yrd Mat Min Exi Min Active Infowar (turns) . | . . . . . Robot Analysis Total . | . . . . . Derelict Logs Recovered 2 | . . 2 . . Drone Launches . | . . . . . Drone Recoveries . | . . . . . Exploration | -11 -10 -10 -10 -9 ------------- Run | Yrd Mat Min Exi Min Turns Passed 6319 | . 2102 2006 1543 668 Spaces Moved 1890 | 1 623 609 483 174 Core 6 | . . . . 6 Treads 1491 | . 344 609 483 55 Legs 136 | 1 22 . . 113 Wheels 257 | . 257 . . . Hover . | . . . . . Flight . | . . . . . Fastest Speed 50 | 120 120 320 320 50 Average Speed 297 | 120 238 320 320 362 Slowest Speed 400 | 120 320 320 320 400 Overloaded Moves . | . . . . . Propulsion Burnouts . | . . . . . Robots Hopped . | . . . . . Potential Cave-ins . | . . . . . Cave-ins Triggered . | . . . . . Exploration Rate (%) 64 | 1 92 99 92 36 Regions Visited 4 Branch Regions 3 Pre-discovered Areas . | . . . . . Known Exits Taken . | . . . . . Unknown Exits Taken 4 | 1 1 1 1 . Scrap Searched 2 | . . 2 . . Spaces Dug . | . . . . . Terrain Destroyed 51 | . 51 . . . Melee . | . . . . . Projectile . | . . . . . AOE 51 | . 51 . . . Terrain Rammed . | . . . . . Walls Destroyed . | . . . . . Machines Disabled . | . . . . . Actions | -11 -10 -10 -10 -9 --------- Run | Yrd Mat Min Exi Min Total 2433 | . 1129 629 482 193 Wait 416 | . 414 . . 2 Move 1886 | . 622 608 482 174 Hop . | . . . . . Pick Up 19 | . 16 1 . 2 Fast Attach 2 | . 2 . . . Attach 6 | . 3 1 . 2 Detach 1 | . 1 . . . Swap 12 | . 11 . . 1 Drop 1 | . . . . 1 Fire 85 | . 58 16 . 11 Melee . | . . . . . Ram . | . . . . . Kick . | . . . . . Crush 5 | . 2 3 . . Escape Stasis . | . . . . . Rewire . | . . . . . Trap . | . . . . . Miscellaneous . | . . . . . Route ------- -11/Scrapyard -10/Materials (discovered 3 exits: [*Mat x2] / [*Min]) -10/Mines (discovered 4 exits: [*Mat x2] / *Exi / *Sub) -10/Exiles -9/Mines History --------- Turn | Location | Event 1 | -11/Scrapyard | Discovered new exit (range 0) 1 | -11/Scrapyard | Entered Materials 323 | -10/Materials | Build established: Mutant 402 | -10/Materials | Discovered new exit (range 5) 470 | -10/Materials | Repaired Med. Laser 478 | -10/Materials | Discovered new exit (range 8) 1520 | -10/Materials | Discovered new exit (range 13) 2103 | -10/Materials | Entered Mines 2119 | -10/Mines | Discovered new exit (range 14) 2850 | -10/Mines | Learned Materials terminal intel 3037 | -10/Mines | Identified exit to Subcaves 3159 | -10/Mines | Deemed a non-threat by the Exiles lab entrance 3162 | -10/Mines | Discovered new exit (range 5) 3680 | -10/Mines | Discovered new exit (range 9) 4109 | -10/Mines | Entered Exiles 4109 | -10/Exiles | Found Exiles lab abandoned 5617 | -10/Exiles | Discovered new exit (range 14) 5652 | -10/Exiles | Entered Mines 6094 | -9/Mines | Found a Scrap Suit stashed away for nefarious purposes 6103 | -9/Mines | Found Scrap Suit 6288 | -9/Mines | Assembled infested the area 6317 | -9/Mines | Released all parts (6) 6319 | -9/Mines | Core integrity fell below 50% 6320 | -9/Mines | Destroyed by D-53 Grenadier with Mini Grenade Launcher Last Messages --------------- 06122_ U-05 Engineer lays Concrete. 06139_ U-05 Engineer builds a Wall. 06139_ U-05 Engineer lays Concrete. 06142_ U-05 Engineer builds a Wall. 06155_ U-05 Engineer lays Concrete. 06156_ U-05 Engineer builds a Wall. 06168_ K-01 Serf collects debris. 06288_ ALERT: Infestation in the mines, dispatching Demolisher response squad. 06317_ C-45 Heavy ARC bursts open, deploying its payload. 06317_ D-53 Grenadier unfolds itself. 06317_ Imp. Ion Engine destroyed. 06317_ Released Aluminum Leg. 06317_ Released Sml. Laser. 06317_ Released Imp. Heat Sink. 06317_ Released Med. Laser. 06317_ Released Huge Storage Unit. 06317_ Released Aluminum Leg. 06320_ Acquired 15 matter. 06320_ K-01 Serf destroyed. Map ----- +----------------------------------------------------+ | ?????????????????????????????????????????????? | | ?????????????????????????????????????????????? | | ?????????????????????????????????????????????? | | ?????????????????????????????????????????????? | | ?????????????????????????????????????????????? | | ?????????????????????????????????????????????? | | ??????????????????????####???????????????????? | | ??????????????????????? ??????????????????? | | ?????????????????????????# ###########??????? | | ?????????????????????????# #??????? | | ?????????????????????????# #??????? | | ?????????????????????????###### #### ####???? | | ??????????????????????????????# #?## # ##??? | | ??????????????????????????????# ### #??? | | ??????????????????????????????# ## #??? | | ???????????????????????######## ## ##??? | | ???????????????????????# ### ##??? | | ???????????????????????# ##### #?## #??? | | ??????????????????????????????# ###### #??? | | ??????????????????????????????# %#??## ##??? | | ??????????????????????????????###%#???####???? | | ??????????????????????????####### #####??????? | | ????????????????#####??### ## #??????? | | ???????????????## #### """ #??????? | | ???????????????# ! # = """ #??????? | | ??????????????## =[*! @% ## """ #??????? | | ??????????????# ][![[* t ## #??????? | | ??????????????###!!=[* ## """ #??????? | | ???????????????# [] = % ## """ #??????? | | ???????????????# [ d= ### """ #??????? | | ???????????????## %d ###?# #??????? | | ????????????????## #???##########??????? | | ?????????????????## # ##???????????????????? | | ??????????????????###t #???????????????????? | | ??????????????????## #???????????????????? | | ???????????#####?## ##???????????????????? | | ??????????## ### ##????????????????????? | | ?????????## ##?????????????????????? | | ????????## #??????????????????????? | | ????????# ## #??????????????????????? | | ???????## #### #??????????????????????? | | ?????### ##??## ##??????????????????????? | | ???### ##???# #???????????????????????? | | #?## #???# #???????????????????????? | | ### #???# #???????????????????????? | | ##???# #???????????????????????? | | ## ####????# #???????????????????????? | | ### ######### #???????????????????????? | | ##?# #???????????????????????? | | #??########### #???????????????????????? | +----------------------------------------------------+ Best States ------------- Heat Dissipation 39 Energy Generation 12 Energy Capacity 265 Matter Stores 300 Matter Capacity 300 Sight Range 16 Terrain Scan Density 10 Evasion (%) 55 Recoil Reduction 2 Item Schematics ----------------- None Robot Schematics ------------------ None Fabricated ------------ Nothing Repaired ---------- Med. Laser | 11% | -10/Materials Studied --------- None Alien Tech Used ----------------- None Achievements -------------- None Challenges ------------ None Game ------ Seed FactoryAerolevDatajack Manual? 0 Play Time 00:13:18 Cumulative 270.6 hours Start 2026.01.06 @ 13:12:04 End 2026.01.06 @ 13:25:37 Sessions 1 Manual Loads 0 Difficulty Rogue Special Mode None Game No. 347 Rogue 346 Adventurer 1 Explorer 0 Win Type - Total 2 Types 1/0/0/1/0/0/0/0/0/0 Lore% 74 Gallery% 67 Achievement% 56 Wizard Run 0 Options --------- Layout 0 ASCII 0 Keyboard 0 Movement Numpad Keybinds 0 Fullscreen 1 Font 24/Smallcaps Map View 76x50 Zoom Use 0% Tactical HUD 1 Map Filters NONE Filters NONE Steam 1 RUN: a3434f47-a2d7-4507-be3b-92b333a585f0